bitfinex/quotes_BTCUSD_20260103
["timestamp","ask_amount","ask_price","bid_price","bid_amount"]
[1767460083039,0.05477665,90002.0,89997.0,0.01111148]
[1767460083242,0.06666677,90000.0,89995.0,0.06667033]
[1767460083439,0.06666677,90000.0,89996.0,0.04931992]
[1767460084239,0.06666677,90000.0,89995.0,0.06667033]
[1767460084941,0.01111123,89999.0,89995.0,0.06667033]
[1767460085146,0.06666677,90000.0,89996.0,0.04931992]
[1767460085459,0.01111123,89999.0,89996.0,0.06043152]
[1767460085796,0.01111123,89999.0,89996.0,0.0111116]
[1767460086288,0.01111123,89999.0,89995.0,0.06667033]
[1767460086489,0.01111135,89998.0,89995.0,0.06667033]
[1767460086657,0.01111123,89999.0,89996.0,0.0111116]
[1767460087713,0.00089144,89996.0,89995.0,0.01100039]
[1767460088309,0.01111135,89998.0,89995.0,0.01100039]
[1767460089949,0.01111135,89998.0,89995.0,0.04931992]
[1767460090772,0.01111123,89999.0,89995.0,0.11598989]
[1767460090976,0.01111123,89999.0,89996.0,0.0111116]
[1767460091586,0.06666677,90000.0,89997.0,0.04931992]
[1767460091798,0.06666787,89999.0,89997.0,0.04931992]
[1767460092330,0.06666787,89999.0,89995.0,0.06043164]
[1767460092875,0.06666787,89999.0,89995.0,0.06038613]
[1767460093332,0.06666787,89999.0,89980.0,0.3178191]
[1767460093333,0.000892,89995.0,89992.0,0.04931992]
[1767460093535,0.01111172,89995.0,89992.0,0.06043201]
[1767460093761,0.0111116,89996.0,89994.0,0.04931992]
[1767460093981,0.01111135,89998.0,89994.0,0.04931992]
[1767460094396,0.01100435,89998.0,89995.0,0.01111172]
[1767460094618,0.01100435,89998.0,89995.0,0.06043164]
[1767460095650,0.01100435,89998.0,89995.0,0.06031396]
[1767460097061,0.01100435,89998.0,89995.0,0.04931992]
[1767460098299,0.05555718,89998.0,89995.0,0.04931992]
[1767460098923,0.06666853,89998.0,89995.0,0.04931992]
[1767460102440,0.06666853,89998.0,89994.0,0.01111185]
[1767460102805,0.06666853,89998.0,89994.0,0.06043177]
[1767460102971,0.01111123,89999.0,89995.0,0.01111172]
[1767460103171,0.01111135,89998.0,89994.0,0.06043177]
[1767460103563,0.06666864,89998.0,89994.0,0.06043177]
[1767460103708,0.01111135,89998.0,89994.0,0.06043177]
[1767460104747,0.01111135,89998.0,89995.0,0.01111172]
[1767460105705,0.06666762,89999.0,89995.0,0.01111172]
[1767460105905,0.01111111,90000.0,89996.0,0.0111116]
[1767460106128,0.04466641,90001.0,89996.0,0.0111116]
[1767460106823,0.06666744,89999.0,89995.0,0.01111172]
[1767460107829,0.01111135,89998.0,89995.0,0.01111172]
[1767460108843,0.06666855,89998.0,89994.0,0.06043177]
[1767460109225,0.06666924,89997.0,89994.0,0.04832092]
[1767460109420,0.06666924,89997.0,89992.0,0.06043201]
[1767460109421,0.06667005,89996.0,89992.0,0.06043201]
[1767460110273,0.06667077,89995.0,89992.0,0.04931992]
[1767460110432,0.01111185,89994.0,89991.0,0.02224]
[1767460110619,0.06667152,89994.0,89991.0,0.02224]
[1767460111316,0.01111185,89994.0,89991.0,0.02224]
[1767460112254,0.06667145,89994.0,89991.0,0.02224]
[1767460112766,0.06667221,89993.0,89990.0,0.000149]
[1767460113574,0.01111197,89993.0,89990.0,0.01126134]
[1767460113778,0.00611297,89993.0,89990.0,0.01126134]
[1767460113974,0.01111185,89994.0,89991.0,0.01111222]
[1767460114796,0.01111185,89994.0,89990.0,0.01126134]
[1767460115301,0.01111185,89994.0,89989.0,0.06667443]
[1767460115917,0.01111185,89994.0,89990.0,0.01111234]
[1767460118975,0.01111185,89994.0,89991.0,0.01111222]
[1767460121180,0.01111185,89994.0,89990.0,0.01111234]
[1767460121560,0.06278258,89995.0,89990.0,0.01111234]
[1767460121769,0.06278258,89995.0,89989.0,0.06667443]
[1767460121770,0.01111197,89993.0,89989.0,0.06667443]
[1767460122898,0.06667229,89993.0,89989.0,0.01111246]
[1767460123054,0.06667229,89993.0,89989.0,0.0575375]
[1767460123978,0.01111246,89989.0,89986.0,0.04642504]
[1767460124382,0.05556296,89988.0,89986.0,0.04642504]
[1767460124699,0.01111246,89989.0,89986.0,0.04642504]
[1767460125564,0.01111246,89989.0,89986.0,0.05753787]
[1767460125767,0.06667305,89992.0,89987.0,0.05753775]
[1767460126168,0.01111222,89991.0,89987.0,0.05753775]
[1767460126891,0.01111234,89990.0,89987.0,0.04642504]
[1767460127498,0.05556271,89989.0,89987.0,0.04642504]
[1767460128048,0.05556234,89989.0,89987.0,0.04642504]
[1767460129189,0.04756234,89989.0,89987.0,0.04642504]
[1767460129926,0.06667461,89990.0,89987.0,0.04642504]
[1767460130289,0.05556279,89989.0,89987.0,0.04642504]
[1767460131140,0.01111271,89987.0,89983.0,0.01111321]
[1767460131433,0.000999,89987.0,89985.0,0.05556481]
[1767460131595,0.000999,89987.0,89985.0,0.10198985]
[1767460131796,0.01111246,89989.0,89985.0,0.11310281]
[1767460132000,0.01111259,89988.0,89985.0,0.057538]
[1767460135159,0.06667451,89990.0,89985.0,0.057538]
[1767460135721,0.06667451,89990.0,89986.0,0.01111283]
[1767460136948,0.04567451,89990.0,89986.0,0.01111283]
[1767460137848,0.05678685,89990.0,89986.0,0.01111283]
[1767460138810,0.01111234,89990.0,89986.0,0.01111283]
[1767460140568,0.01111234,89990.0,89986.0,0.06667667]
[1767460141297,0.06667371,89991.0,89986.0,0.06667667]
[1767460141298,0.01111197,89993.0,89989.0,0.01111246]
[1767460141838,0.01111197,89993.0,89989.0,0.01106694]
[1767460142664,0.01111209,89992.0,89989.0,0.01106694]
[1767460142919,0.06667297,89992.0,89988.0,0.01111259]
[1767460143425,0.06667297,89992.0,89988.0,0.06667508]
[1767460143426,0.01111209,89992.0,89988.0,0.06667508]
[1767460143635,0.01111209,89992.0,89988.0,0.11485395]
[1767460145508,0.01111209,89992.0,89988.0,0.01111259]
[1767460146228,0.01111209,89992.0,89988.0,0.01106707]
[1767460148143,0.06667293,89992.0,89988.0,0.01106707]
[1767460148836,0.01111222,89991.0,89988.0,0.01106707]
[1767460150238,0.000999,89988.0,89986.0,0.06667656]
[1767460150542,0.01111234,89990.0,89986.0,0.06667656]
[1767460152151,0.01111234,89990.0,89986.0,0.01111283]
[1767460152350,0.00711234,89990.0,89986.0,0.01111283]
[1767460152654,0.01111246,89989.0,89986.0,0.01111283]
[1767460153859,0.06667275,89992.0,89987.0,0.01111271]
[1767460154018,0.01111234,89990.0,89987.0,0.01111271]
[1767460158577,0.01111234,89990.0,89987.0,0.01106719]
[1767460160193,0.04678613,89991.0,89987.0,0.01106719]
[1767460160928,0.01111234,89990.0,89987.0,0.01106719]
[1767460161784,0.01111234,89990.0,89987.0,0.01102167]
[1767460161985,0.06667442,89990.0,89986.0,0.01111283]
[1767460162248,0.000999,89987.0,89986.0,0.01111283]
[1767460162623,0.01111246,89989.0,89986.0,0.01111283]
[1767460165759,0.01111234,89990.0,89986.0,0.06667665]
[1767460165954,0.01111234,89990.0,89987.0,0.01111271]
[1767460167380,0.04996174,89989.0,89961.0,0.04817887]
[1767460167575,0.05557106,89975.0,89973.0,1e-08]
[1767460167777,0.04757106,89975.0,89973.0,1e-08]
[1767460169808,0.01111358,89980.0,89973.0,1e-08]
[1767460169809,0.01111209,89992.0,89986.0,0.01111283]
[1767460169946,0.01111222,89991.0,89987.0,0.02224]
[1767460170146,0.01111222,89991.0,89983.0,0.01111321]
[1767460170148,0.01111333,89982.0,89975.0,0.02224]
[1767460170369,0.01111358,89980.0,89975.0,0.02224]
[1767460170568,0.01111321,89983.0,89979.0,0.0111137]
[1767460170778,0.01111358,89980.0,89977.0,0.04747359]
[1767460171211,0.06668201,89980.0,89977.0,0.04647459]
[1767460172171,0.01111358,89980.0,89977.0,0.04647459]
[1767460173478,0.01111345,89981.0,89977.0,0.05758854]
[1767460176390,0.01111358,89980.0,89977.0,0.04647459]
[1767460176539,0.01111358,89980.0,89976.0,0.01111407]
[1767460178456,0.01111345,89981.0,89977.0,0.01111395]
[1767460180282,0.00822678,89982.0,89978.0,0.06668286]
[1767460180467,0.00822678,89982.0,89979.0,0.0111137]
[1767460181047,0.01111321,89983.0,89979.0,0.0111137]
[1767460183498,0.0555659,89984.0,89979.0,0.0111137]
[1767460183770,0.000999,89979.0,89978.0,0.01111382]
[1767460184131,0.01111345,89981.0,89978.0,0.01111382]
[1767460184333,0.01111333,89982.0,89978.0,0.01111382]
[1767460184749,0.01111333,89982.0,89979.0,0.0111137]
[1767460185293,0.01111333,89982.0,89980.0,0.02224]
[1767460186435,0.01111333,89982.0,89980.0,0.02219448]
[1767460190307,0.01111296,89985.0,89980.0,0.03330806]
[1767460190515,0.01116425,89989.0,89984.0,0.06667813]
[1767460190682,0.01111259,89988.0,89985.0,0.01111296]
[1767460190886,0.01111259,89988.0,89985.0,0.01011396]
[1767460191384,0.00527684,89989.0,89985.0,0.01011396]
[1767460191926,0.01111259,89988.0,89985.0,0.01011396]
[1767460192365,0.00527684,89989.0,89988.0,0.000999]
[1767460192585,0.00527684,89989.0,89988.0,0.00095348]
[1767460192789,0.00527684,89989.0,89987.0,0.02224]
[1767460193004,0.06083974,89989.0,89987.0,0.02224]
[1767460193884,0.00527684,89989.0,89987.0,0.02209627]
[1767460194100,0.06667446,89990.0,89989.0,0.000954]
[1767460194300,0.000954,89989.0,89987.0,0.03316398]
[1767460194507,0.000954,89989.0,89987.0,0.02205127]
[1767460194941,0.000954,89989.0,89987.0,0.02186203]
[1767460195849,0.05556296,89988.0,89987.0,0.02186203]
[1767460196020,0.05651671,89989.0,89987.0,0.02090803]
[1767460196227,0.01040568,89988.0,89987.0,0.02090803]
[1767460197183,0.0104106,89988.0,89987.0,0.02090803]
[1767460198944,0.0004106,89988.0,89987.0,0.02090803]
[1767460201201,6e-07,89988.0,89987.0,0.02090803]
[1767460201897,0.06667315,89992.0,89987.0,0.02090803]
[1767460201898,0.03007963,90004.0,89989.0,0.06667473]
[1767460202031,0.01111123,89999.0,89994.0,0.01111185]
[1767460202236,0.01111135,89998.0,89994.0,0.01111185]
[1767460202455,0.01111135,89998.0,89995.0,0.01111172]
[1767460202655,0.01111135,89998.0,89995.0,0.0110662]
[1767460203248,0.01111135,89998.0,89995.0,0.01102068]
[1767460203897,0.06666888,89997.0,89994.0,0.01111185]
[1767460204103,0.00041,89995.0,89994.0,0.01111185]
[1767460204260,0.06666888,89997.0,89994.0,0.03335185]
[1767460204460,0.01111148,89997.0,89994.0,0.03335185]
[1767460206611,0.00722283,89998.0,89994.0,0.03335185]
[1767460207127,0.01111148,89997.0,89994.0,0.03330634]
[1767460209763,0.00722283,89998.0,89997.0,0.000589]
[1767460209957,0.00722283,89998.0,89994.0,0.03330634]
[1767460209958,0.000589,89997.0,89994.0,0.03330634]
[1767460210963,0.00722283,89998.0,89994.0,0.03330634]
[1767460211946,0.00722283,89998.0,89994.0,0.03326246]
[1767460212181,0.00722283,89998.0,89994.0,0.03321695]
[1767460214253,0.0666679,89999.0,89994.0,0.03321695]
[1767460214571,0.01040152,89998.0,89994.0,0.03321695]
[1767460214773,0.0666679,89999.0,89994.0,0.03321695]
[1767460214956,0.02151287,89998.0,89994.0,0.03321695]
[1767460215155,0.01111135,89998.0,89994.0,0.03321695]
[1767460215668,0.01111148,89997.0,89994.0,0.03321695]
[1767460218676,0.00047647,90006.0,90000.0,0.01111111]
[1767460218895,0.00386974,90000.0,89997.0,0.10175015]
[1767460219042,0.01111049,90005.0,90001.0,0.06666552]
[1767460219242,0.01111049,90005.0,90001.0,0.01111098]
[1767460219696,0.01111049,90005.0,90001.0,0.01106547]
[1767460220194,0.01111049,90005.0,90001.0,0.06662005]
[1767460220747,0.0112596,90004.0,90001.0,0.01106547]
[1767460222063,0.06392313,90005.0,90001.0,0.01106547]
[1767460222866,0.01111061,90004.0,90001.0,0.01106547]
[1767460226761,0.01111061,90004.0,90001.0,0.05725868]
[1767460227140,0.00837009,90005.0,90001.0,0.06662004]
[1767460227845,0.00837009,90005.0,90001.0,0.06657453]
[1767460228864,0.01111061,90004.0,90001.0,0.01101996]
[1767460229560,0.00837009,90005.0,90001.0,0.01101996]
[1767460229794,0.22798011,90016.0,90004.0,0.000999]
[1767460229945,0.01110975,90011.0,90007.0,0.00911224]
[1767460230133,0.01040228,90010.0,90007.0,0.06466297]
[1767460230337,0.01040228,90009.0,90007.0,0.06466297]
[1767460230685,0.01110975,90011.0,90008.0,0.01111012]
[1767460230884,0.0104012,90010.0,90007.0,0.06466297]
[1767460231172,0.0104012,90009.0,90007.0,0.06466297]
[1767460231399,0.0111095,90013.0,90009.0,0.000999]
[1767460231643,0.01040145,90012.0,90009.0,1e-08]
[1767460231806,0.01040145,90011.0,90009.0,1e-08]
[1767460232012,0.01040145,90010.0,90007.0,0.06466297]
[1767460232211,0.01040145,90009.0,90008.0,0.01111012]
[1767460232418,0.01040145,90009.0,90007.0,0.06466297]
[1767460232616,0.01110975,90011.0,90007.0,0.06466297]
[1767460232784,0.0104007,90010.0,90007.0,0.06466297]
[1767460232986,0.0104007,90009.0,90007.0,0.06466297]
[1767460233197,0.01110975,90011.0,90007.0,0.06466297]
[1767460233540,0.01040011,90010.0,90007.0,0.06466297]
[1767460233754,0.01110975,90011.0,90007.0,0.06466297]
[1767460234034,0.01040011,90010.0,90008.0,0.01111012]
[1767460234230,0.01110975,90011.0,90008.0,1e-08]
[1767460234590,0.01110962,90012.0,90008.0,0.01111013]
[1767460234816,0.01039951,90011.0,90007.0,0.06466297]
[1767460234994,0.01110962,90012.0,90007.0,0.06466297]
[1767460235207,0.01039951,90011.0,90007.0,0.06466297]
[1767460235538,0.01110962,90012.0,90007.0,0.06466297]
[1767460235883,0.01110962,90012.0,90008.0,0.01111012]
[1767460236088,0.01110962,90012.0,90007.0,0.06466297]
[1767460236813,0.01110962,90012.0,90008.0,0.01111012]
[1767460237014,0.01110962,90012.0,90007.0,0.06466297]
[1767460237402,0.0647671,90013.0,90008.0,0.01111012]
[1767460237605,0.02150757,90012.0,90007.0,0.06466297]
[1767460237807,0.01110962,90012.0,90008.0,0.01111012]
[1767460238044,0.01110962,90012.0,90007.0,0.05555073]
[1767460238918,0.01110962,90012.0,90008.0,0.01111012]
[1767460239217,0.01110962,90012.0,90008.0,0.00999984]
[1767460240173,0.0647671,90013.0,90008.0,0.00999984]
[1767460240174,0.00921912,90013.0,90010.0,0.01110987]
[1767460240311,0.00921912,90013.0,90010.0,0.05663986]
[1767460240513,0.00921912,90013.0,90010.0,0.05564086]
[1767460243371,0.00921912,90013.0,90010.0,0.05559536]
[1767460243669,0.01110913,90016.0,90010.0,0.05559536]
[1767460243838,0.0111095,90013.0,90010.0,0.05559536]
[1767460244021,0.06665629,90014.0,90010.0,0.05559536]
[1767460244432,0.01110938,90014.0,90011.0,0.05668524]
[1767460245084,0.04965605,90015.0,90011.0,0.05668524]
[1767460245397,0.01039806,90014.0,90011.0,0.05668524]
[1767460245598,0.04965605,90015.0,90011.0,0.05668524]
[1767460245802,0.01039806,90014.0,90011.0,0.05668524]
[1767460246002,0.01110938,90014.0,90011.0,0.05668524]
[1767460247775,0.01110913,90016.0,90014.0,0.000999]
[1767460247973,0.01125739,90022.0,90018.0,0.01110888]
[1767460248194,0.01110802,90025.0,90019.0,0.05668425]
[1767460248195,0.01110814,90024.0,90019.0,0.05668425]
[1767460248511,0.01110814,90024.0,90019.0,0.01110876]
[1767460248874,0.06664931,90024.0,90019.0,0.01110876]
[1767460249502,0.01110753,90029.0,90024.0,0.01210714]
[1767460249839,0.01110765,90028.0,90024.0,0.01110814]
[1767460250659,0.01110765,90028.0,90023.0,0.0666492]
[1767460250860,0.01110765,90028.0,90023.0,0.05934061]
[1767460251245,0.01110777,90027.0,90024.0,0.01110814]
[1767460251591,0.01110777,90027.0,90023.0,0.05934061]
[1767460251798,0.01110777,90027.0,90023.0,0.01110827]
[1767460252216,0.0111079,90026.0,90023.0,0.01110827]
[1767460252823,0.00721567,90027.0,90023.0,0.01110827]
[1767460253992,0.0111079,90026.0,90023.0,0.01110827]
[1767460254658,0.00721567,90027.0,90023.0,0.01110827]
[1767460259863,0.00721567,90027.0,90023.0,0.01106277]
[1767460260094,0.0111079,90026.0,90023.0,0.01106277]
[1767460260568,0.05553931,90027.0,90023.0,0.01106277]
[1767460260972,0.0111079,90026.0,90023.0,0.01106277]
[1767460263390,0.0111079,90026.0,90022.0,0.06664986]
[1767460263617,0.0111079,90026.0,90022.0,0.05554147]
[1767460264034,0.0111079,90026.0,90023.0,0.01110827]
[1767460268406,0.06275498,90027.0,90023.0,0.01110827]
[1767460268567,0.0111079,90026.0,90023.0,0.01096465]
[1767460273281,0.01110802,90025.0,90022.0,0.01110839]
[1767460273480,0.01110802,90025.0,90021.0,0.0666511]
[1767460274277,0.06664864,90025.0,90021.0,0.0666511]
[1767460274886,0.01110814,90024.0,90021.0,0.0666511]
[1767460276152,0.01110802,90025.0,90021.0,0.0666511]
[1767460276865,0.01110814,90024.0,90021.0,0.0666511]
[1767460279435,0.0104131,90023.0,90021.0,0.0666511]
[1767460279647,0.01110814,90024.0,90021.0,0.0666511]
[1767460279881,0.0104131,90023.0,90021.0,0.0666511]
[1767460280087,0.01110814,90024.0,90021.0,0.0666511]
[1767460280300,0.01041311,90023.0,90021.0,0.0666511]
[1767460280473,0.01110814,90024.0,90021.0,0.0666511]
[1767460280682,0.01041324,90023.0,90021.0,0.0666511]
[1767460280855,0.01110814,90024.0,90021.0,0.0666511]
[1767460281216,0.01041324,90023.0,90021.0,0.0666511]
[1767460281370,0.01110814,90024.0,90021.0,0.0666511]
[1767460281565,0.01041349,90023.0,90021.0,0.0666511]
[1767460281818,0.01110814,90024.0,90021.0,0.0666511]
[1767460282139,0.01041349,90023.0,90021.0,0.0666511]
[1767460282346,0.01110814,90024.0,90021.0,0.0666511]
[1767460282559,0.01041349,90023.0,90021.0,0.0666511]
[1767460282759,0.01110814,90024.0,90021.0,0.0666511]
[1767460282966,0.01041349,90023.0,90021.0,0.0666511]
[1767460283154,0.01110814,90024.0,90021.0,0.0666511]
[1767460283392,0.01041348,90023.0,90021.0,0.0666511]
[1767460283611,0.01110802,90025.0,90021.0,0.0666511]
[1767460283856,0.01041348,90024.0,90021.0,0.0666511]
[1767460284076,0.01041348,90023.0,90021.0,0.0666511]
[1767460284295,0.06664785,90026.0,90021.0,0.0666511]
[1767460284516,0.01041347,90025.0,90021.0,0.0666511]
[1767460284758,0.01041347,90024.0,90021.0,0.0666511]
[1767460284973,0.01041347,90023.0,90021.0,0.0666511]
[1767460285192,0.01110802,90025.0,90021.0,0.0666511]
[1767460285402,0.01041347,90024.0,90021.0,0.0666511]
[1767460285638,0.01041347,90023.0,90021.0,0.0666511]
[1767460285846,0.01110802,90025.0,90021.0,0.0666511]
[1767460286060,0.01041347,90024.0,90021.0,0.0666511]
[1767460286275,0.01041347,90023.0,90021.0,0.0666511]
[1767460286488,0.01110802,90025.0,90021.0,0.0666511]
[1767460286699,0.01041347,90024.0,90021.0,0.0666511]
[1767460286909,0.06664785,90026.0,90022.0,0.06664996]
[1767460287125,0.0104134,90025.0,90022.0,0.06664996]
[1767460287352,0.0104134,90024.0,90022.0,0.06664996]
[1767460287574,0.0111079,90026.0,90024.0,0.000999]
[1767460287788,0.01041322,90025.0,90023.0,0.01110827]
[1767460287999,0.01041322,90024.0,90023.0,0.01110827]
[1767460288654,0.00941422,90024.0,90023.0,0.01110827]
[1767460291454,0.00541422,90024.0,90023.0,0.01110827]
[1767460292479,0.01652236,90024.0,90021.0,0.01110851]
[1767460292682,0.01110814,90024.0,90021.0,0.01110851]
[1767460297821,0.01210751,90021.0,90018.0,0.01110888]
[1767460297983,0.06665011,90023.0,90018.0,0.06665286]
[1767460298167,0.01110839,90022.0,90018.0,0.01110888]
[1767460298562,0.01110851,90021.0,90018.0,0.01110888]
[1767460299280,0.000999,90018.0,90017.0,0.01110901]
[1767460299717,0.01110864,90020.0,90017.0,0.01110901]
[1767460299882,0.01110864,90020.0,90015.0,0.08889515]
[1767460300108,0.01110888,90018.0,90015.0,0.02224]
[1767460300308,0.06665382,90018.0,90015.0,0.02224]
[1767460300522,0.01110888,90018.0,90015.0,0.03334925]
[1767460300722,0.01110864,90020.0,90016.0,0.01110913]
[1767460301742,0.01110876,90019.0,90016.0,0.01011013]
[1767460302255,0.01110876,90019.0,90015.0,0.02224]
[1767460302256,0.01110888,90018.0,90015.0,0.02224]
[1767460302457,0.05554547,90017.0,90015.0,0.02224]
[1767460302637,0.00810851,90021.0,90015.0,0.02224]
[1767460302893,0.01110814,90024.0,90019.0,0.05554382]
[1767460303103,0.01110839,90022.0,90019.0,0.01110876]
[1767460303606,0.06664935,90024.0,90019.0,0.01110876]
[1767460303734,0.0104125,90023.0,90019.0,0.01110876]
[1767460303935,0.06664935,90024.0,90019.0,0.01110876]
[1767460304137,0.01041247,90023.0,90019.0,0.01110876]
[1767460304370,0.06664935,90024.0,90019.0,0.01110876]
[1767460304550,0.00941328,90023.0,90019.0,0.06665214]
[1767460304757,0.06664935,90024.0,90019.0,0.06665214]
[1767460304961,0.06664935,90024.0,90020.0,0.01110864]
[1767460306993,0.05554121,90024.0,90020.0,0.01110864]
[1767460307857,0.06664935,90024.0,90020.0,0.01110864]
[1767460309063,0.01110827,90023.0,90020.0,0.01110864]
[1767460309239,0.01110827,90023.0,90019.0,0.01110876]
[1767460309240,0.01110839,90022.0,90019.0,0.01110876]
[1767460309425,0.01110839,90022.0,90019.0,0.01010976]
[1767460310392,0.01110839,90022.0,90018.0,0.06665332]
[1767460311096,0.01110851,90021.0,90018.0,0.01110888]
[1767460311251,0.01110864,90020.0,90016.0,0.01106526]
[1767460311452,0.01110876,90019.0,90015.0,0.02224]
[1767460311650,0.06665374,90018.0,90015.0,0.02219613]
[1767460312331,0.01110888,90018.0,90015.0,0.02219613]
[1767460312664,0.01110888,90018.0,90015.0,0.03330538]
[1767460313801,0.01110876,90019.0,90015.0,0.08885126]
[1767460314140,0.01110876,90019.0,90015.0,0.08061519]
[1767460314552,0.00710876,90019.0,90015.0,0.08061519]
[1767460314751,0.00710876,90019.0,90015.0,0.02506931]
[1767460315989,0.01110888,90018.0,90015.0,0.01396006]
[1767460316436,0.01110888,90018.0,90015.0,0.02506931]
[1767460316593,0.00710876,90019.0,90016.0,0.01110913]
[1767460316805,0.00710876,90019.0,90016.0,0.01106527]
[1767460319502,0.06665234,90020.0,90016.0,0.01106527]
[1767460320584,0.01110864,90020.0,90017.0,0.01110901]
[1767460320773,0.01110864,90020.0,90017.0,0.01106515]
[1767460321383,0.01110839,90022.0,90020.0,0.000999]
[1767460321720,0.01110814,90024.0,90019.0,0.06665223]
[1767460321902,0.01041129,90023.0,90020.0,0.05554276]
[1767460322105,0.06664785,90026.0,90021.0,0.01110851]
[1767460322286,0.0215194,90025.0,90021.0,0.01110851]
[1767460322487,0.01041138,90024.0,90021.0,0.01110851]
[1767460322693,0.00941238,90023.0,90021.0,0.01110851]
[1767460322893,0.06475664,90025.0,90021.0,0.01110851]
[1767460323824,0.01110814,90024.0,90021.0,0.01110851]
[1767460324530,0.01110814,90024.0,90020.0,0.01110864]
[1767460325203,0.06664928,90024.0,90020.0,0.01110864]
[1767460329089,0.01110814,90024.0,90021.0,0.0666511]
[1767460329671,0.01110814,90024.0,90021.0,0.01110851]
[1767460330663,0.06086478,90025.0,90021.0,0.01110851]
[1767460330871,0.01110814,90024.0,90021.0,0.01110851]
[1767460331785,0.01110827,90023.0,90020.0,0.01110864]
[1767460333371,0.01110876,90019.0,90016.0,0.04841851]
[1767460333572,0.01110876,90019.0,90015.0,0.02506931]
[1767460335975,0.01110876,90019.0,90016.0,0.01110913]
[1767460336842,0.01110876,90019.0,90016.0,0.00943925]
[1767460337336,0.01110839,90022.0,90017.0,0.06665407]
[1767460337603,0.01110839,90022.0,90019.0,0.000999]
[1767460337926,0.01110839,90022.0,90017.0,0.06665407]
[1767460338333,0.06375827,90023.0,90019.0,0.01110876]
[1767460338930,0.01110839,90022.0,90019.0,0.01110876]
[1767460339779,0.06375827,90023.0,90019.0,0.01110876]
[1767460341681,0.01110839,90022.0,90019.0,0.01110876]
[1767460341994,0.01110851,90021.0,90017.0,0.06665407]
[1767460342896,0.01110864,90020.0,90017.0,0.06665407]
[1767460343109,0.01110888,90018.0,90015.0,0.02506931]
[1767460343782,0.01110876,90019.0,90015.0,0.08061522]
[1767460344102,0.01110876,90019.0,90016.0,0.01110913]
[1767460344603,0.01110876,90019.0,90016.0,0.01106527]
[1767460345158,0.06665225,90020.0,90016.0,0.06661058]
[1767460345648,0.01110864,90020.0,90017.0,0.01110901]
[1767460346142,0.06075979,90021.0,90017.0,0.01110901]
[1767460346914,0.01110864,90020.0,90017.0,0.01110901]
[1767460351075,0.00521715,90021.0,90020.0,0.000999]
[1767460351462,0.00521715,90021.0,90018.0,0.01110888]
[1767460352289,0.0607601,90021.0,90017.0,0.01110901]
[1767460352604,0.06665244,90020.0,90016.0,0.01106527]
[1767460353821,0.05265244,90020.0,90016.0,0.01106527]
[1767460354634,0.01110876,90019.0,90016.0,0.01026988]
[1767460354778,0.01110876,90019.0,90016.0,0.01009173]
[1767460355460,0.01110876,90019.0,90015.0,0.02506931]
[1767460355642,0.01110876,90019.0,90015.0,0.08061522]
[1767460355850,0.01110876,90019.0,90016.0,0.01110913]
[1767460356273,0.06665299,90019.0,90015.0,0.02506931]
[1767460357443,0.06376108,90020.0,90016.0,0.06665481]
[1767460357942,0.01110864,90020.0,90017.0,0.01110901]
[1767460358929,0.00521715,90021.0,90017.0,0.01110901]
[1767460361481,0.05386776,90022.0,90017.0,0.01110901]
[1767460361973,0.01110851,90021.0,90017.0,0.01110901]
[1767460364781,0.01110851,90021.0,90017.0,0.06665365]
[1767460365920,0.01110864,90020.0,90016.0,0.06665481]
[1767460366319,0.01110864,90020.0,90017.0,0.01110901]
[1767460366472,0.01110851,90021.0,90017.0,0.01110901]
[1767460367148,0.01110864,90020.0,90017.0,0.01110901]
[1767460367481,0.01110876,90019.0,90016.0,0.01110913]
[1767460368839,0.01110876,90019.0,90015.0,0.02506931]
[1767460369262,0.06076099,90020.0,90015.0,0.02506931]
[1767460369589,0.06076099,90020.0,90015.0,0.08061507]
[1767460369789,0.01110876,90019.0,90015.0,0.08061507]
[1767460371072,0.01110839,90022.0,90018.0,0.01110888]
[1767460371273,0.01110839,90022.0,90019.0,0.000999]
[1767460371581,0.01110839,90022.0,90019.0,0.01110876]
[1767460371959,0.05554178,90023.0,90019.0,0.01110876]
[1767460372304,0.05554178,90023.0,90020.0,0.01031327]
[1767460372601,0.05554178,90023.0,90019.0,0.01110876]
[1767460373301,0.05554178,90023.0,90019.0,0.06665216]
[1767460373887,0.05554178,90023.0,90020.0,0.01110864]
[1767460376971,0.04354178,90023.0,90020.0,0.01110864]
[1767460379136,0.01110814,90024.0,90020.0,0.01110864]
[1767460379340,0.0104086,90023.0,90020.0,0.02224]
[1767460379542,0.01110814,90024.0,90020.0,0.01625045]
[1767460379813,0.01040855,90023.0,90020.0,0.01625045]
[1767460380037,0.01110814,90024.0,90020.0,0.02735909]
[1767460380160,0.01040854,90023.0,90020.0,0.02735909]
[1767460380365,0.01110814,90024.0,90020.0,0.02735909]
[1767460380590,0.01040855,90023.0,90020.0,0.02735909]
[1767460380785,0.01110814,90024.0,90020.0,0.02735909]
[1767460381029,0.01040855,90023.0,90020.0,0.02735909]
[1767460381212,0.01110814,90024.0,90020.0,0.02735909]
[1767460381398,0.01040927,90023.0,90020.0,0.02735909]
[1767460381600,0.01110814,90024.0,90020.0,0.02735909]
[1767460381936,0.01040907,90023.0,90020.0,0.02735909]
[1767460382107,0.01110814,90024.0,90020.0,0.02735909]
[1767460382436,0.01040898,90023.0,90020.0,0.02631167]
[1767460382653,0.01110814,90024.0,90020.0,0.02631167]
[1767460382930,0.010409,90023.0,90020.0,0.02631167]
[1767460383135,0.01110814,90024.0,90020.0,0.02631167]
[1767460383399,0.0215172,90023.0,90020.0,0.02631167]
[1767460383613,0.01110827,90023.0,90020.0,0.02631167]
[1767460383839,0.0666501,90023.0,90020.0,0.01520303]
[1767460384072,0.01110827,90023.0,90020.0,0.01520303]
[1767460384741,0.06664932,90024.0,90020.0,0.01520303]
[1767460384954,0.02151731,90023.0,90020.0,0.01520303]
[1767460385157,0.01110827,90023.0,90020.0,0.01520303]
[1767460386647,0.06664932,90024.0,90020.0,0.08185477]
[1767460386786,0.01040917,90023.0,90020.0,0.08185477]
[1767460386992,0.06664932,90024.0,90020.0,0.08185477]
[1767460387227,0.01040917,90023.0,90020.0,0.08185477]
[1767460387440,0.06664932,90024.0,90020.0,0.07365808]
[1767460387643,0.01040924,90023.0,90020.0,0.07365808]
[1767460387808,0.06664932,90024.0,90020.0,0.07365808]
[1767460388017,0.01040924,90023.0,90020.0,0.07365808]
[1767460388211,0.06664932,90024.0,90020.0,0.07365808]
[1767460389171,0.01040947,90023.0,90020.0,0.07365808]
[1767460389320,0.06664932,90024.0,90020.0,0.07365808]
[1767460389522,0.0104095,90023.0,90020.0,0.07365808]
[1767460389737,0.06664932,90024.0,90020.0,0.07365808]
[1767460389940,0.01040951,90023.0,90020.0,0.07365808]
[1767460390142,0.01110802,90025.0,90023.0,0.000999]
[1767460390369,0.01110802,90025.0,90022.0,0.01110839]
[1767460390618,0.06664714,90027.0,90022.0,0.05554162]
[1767460390777,0.01040946,90026.0,90022.0,0.05554162]
[1767460391103,0.01040946,90025.0,90021.0,0.05554225]
[1767460391323,0.0111079,90026.0,90021.0,0.05554225]
[1767460391460,0.01040937,90025.0,90021.0,0.05554225]
[1767460391665,0.0111079,90026.0,90022.0,0.01110839]